bitfinex/quotes_ETHUSD_20240715
["timestamp","ask_amount","ask_price","bid_price","bid_amount"]
[1721081675055,0.30182029,3457.6,3456.1,2.8934]
[1721081675056,0.30182029,3457.6,3457.5,5.78452]
[1721081675648,0.82453998,3458.3,3457.2,2.89249]
[1721081675807,2.3191,3459.2,3457.3,3.0]
[1721081675808,0.30187745,3458.1,3457.3,3.0]
[1721081676013,0.30187745,3458.1,3457.8,2.89199]
[1721081676233,0.82453998,3457.6,3457.4,2.89229]
[1721081676435,0.82453998,3457.4,3457.2,2.89249]
[1721081676651,0.82453998,3457.4,3457.3,2.89243]
[1721081676853,0.82453998,3457.4,3456.0,2.89349]
[1721081676854,0.82453998,3457.4,3457.1,2.89258]
[1721081677011,0.82453998,3457.2,3457.0,2.89265]
[1721081677216,0.82453998,3457.4,3456.8,2.8928]
[1721081677410,0.82453998,3457.0,3456.9,2.89276]
[1721081677745,0.82453998,3457.2,3456.4,0.58934]
[1721081677957,2.3191,3457.9,3456.5,0.648262]
[1721081677958,0.82453998,3457.6,3456.5,0.648262]
[1721081678126,0.82453998,3457.6,3457.4,2.89226]
[1721081678539,0.82453998,3457.2,3457.1,2.89251]
[1721081678751,0.82453998,3456.8,3455.7,2.89376]
[1721081679063,0.82453998,3456.1,3456.0,2.89346]
[1721081679266,0.55,3457.8,3454.9,19.93]
[1721081679267,0.82453998,3456.0,3454.9,19.93]
[1721081679410,0.82453998,3456.0,3454.5,15.26473]
[1721081679411,0.82453998,3456.0,3455.9,2.8936]
[1721081680018,0.82453998,3456.3,3456.2,2.89335]
[1721081680346,0.82453998,3456.5,3456.4,2.89318]
[1721081680517,0.82453998,3456.5,3455.3,2.89402]
[1721081680518,0.82453998,3457.0,3455.1,2.2916]
[1721081680717,0.82453998,3457.0,3456.9,2.89276]
[1721081680937,0.82453998,3457.4,3456.3,2.89319]
[1721081681155,0.82453998,3457.0,3455.9,2.89357]
[1721081681368,0.82453998,3457.0,3456.9,2.89276]
[1721081681674,0.82453998,3457.2,3456.9,2.89272]
[1721081682011,0.82453998,3456.8,3456.4,5.78623]
[1721081682326,0.82453998,3456.8,3456.7,2.89293]
[1721081682507,0.82453998,3457.3,3456.4,2.89317]
[1721081682709,0.82453998,3457.3,3457.2,2.89249]
[1721081683150,0.82453998,3457.3,3457.0,2.89266]
[1721081683151,0.82453998,3457.1,3457.0,2.89268]
[1721081683321,0.82453998,3457.1,3456.9,2.89276]
[1721081683523,0.82453998,3456.9,3456.6,2.89298]
[1721081683724,0.82453998,3456.9,3456.8,2.89284]
[1721081684066,0.82453998,3457.7,3457.5,2.89224]
[1721081684283,0.82453998,3457.7,3457.6,2.89216]
[1721081685495,0.82453998,3458.0,3457.9,2.89192]
[1721081685794,0.30187745,3458.1,3458.0,2.89184]
[1721081686085,0.82453998,3458.4,3458.2,2.89167]
[1721081686301,0.82453998,3458.1,3457.9,2.89191]
[1721081686459,1.12696899,3458.1,3458.0,2.89184]
[1721081686795,1.12696899,3458.1,3457.5,2.89219]
[1721081687141,0.30242901,3458.1,3458.0,5.78368]
[1721081687776,0.82453998,3458.6,3457.6,2.89211]
[1721081687944,0.82453998,3458.6,3457.5,0.289219]
[1721081687945,0.82453998,3458.9,3458.6,2.89127]
[1721081688159,0.82453998,3459.0,3458.7,2.89123]
[1721081688347,0.82453998,3459.0,3458.9,2.89109]
[1721081688749,1.12689665,3459.0,3458.9,2.89109]
[1721081688977,0.30235667,3459.0,3458.9,2.89109]
[1721081689179,1.12689665,3459.0,3458.7,2.89121]
[1721081689395,1.12689665,3459.0,3458.9,2.89109]
[1721081689605,0.30235667,3459.0,3458.9,5.78218]
[1721081690013,0.30235667,3459.0,3458.9,9.360398]
[1721081690223,2.293,3460.5,3459.1,2.89089]
[1721081690366,0.82453998,3459.7,3459.6,2.8905]
[1721081690976,0.30228336,3459.7,3459.6,5.781]
[1721081691591,0.82453998,3460.2,3460.1,2.89008]
[1721081691805,1.12678656,3460.2,3460.1,2.89008]
[1721081692412,1.12678656,3460.2,3458.9,3.578218]
[1721081692579,0.82453998,3459.9,3459.7,2.89038]
[1721081693118,0.82453998,3459.7,3459.5,2.89058]
[1721081693293,0.82453998,3459.9,3459.8,2.89034]
[1721081693810,0.82453998,3460.1,3459.9,2.89024]
[1721081694167,0.82453998,3460.1,3460.0,2.89017]
[1721081694871,0.82453998,3460.1,3460.0,5.78034]
[1721081695084,0.30224658,3460.2,3460.0,5.78034]
[1721081695288,0.30224658,3460.2,3460.1,5.78016]
[1721081695489,0.82453998,3460.7,3460.5,2.88968]
[1721081695689,1.1267435,3460.7,3460.6,2.88967]
[1721081696387,0.30220352,3460.7,3460.6,5.77934]
[1721081698481,0.82453998,3460.5,3460.4,2.88983]
[1721081698967,0.30220352,3460.7,3460.6,5.77934]
[1721081699578,1.1267435,3460.7,3460.6,2.88967]
[1721081699776,1.1267435,3460.7,3460.6,5.77934]
[1721081699981,1.1267435,3460.7,3460.6,2.88967]
[1721081700394,0.82453998,3460.4,3460.3,5.77983]
[1721081700580,0.30220352,3460.7,3460.6,8.66901]
[1721081700973,0.82453998,3461.4,3461.3,2.88908]
[1721081701175,0.82453998,3461.0,3460.9,2.88942]
[1721081701594,0.30216439,3461.4,3460.4,2.88979]
[1721081701595,0.82453998,3460.7,3460.4,2.88979]
[1721081701894,0.82453998,3460.9,3460.5,2.88975]
[1721081702105,0.82453998,3460.9,3460.8,2.8895]
[1721081702325,0.30216439,3461.4,3460.9,2.88942]
[1721081702326,0.82453998,3461.0,3460.9,2.88942]
[1721081702494,0.30216439,3461.4,3460.6,2.88959]
[1721081702495,0.82453998,3460.7,3460.6,2.88959]
[1721081703012,0.82453998,3460.7,3460.2,2.89]
[1721081703013,0.82453998,3460.3,3460.2,2.89]
[1721081703263,0.30216439,3461.4,3459.2,2.89078]
[1721081703264,0.82453998,3460.6,3459.2,2.89078]
[1721081703425,0.82453998,3461.1,3460.1,2.89002]
[1721081703586,0.82453998,3461.1,3461.0,5.77866]
[1721081703771,0.82453998,3460.9,3460.7,2.88951]
[1721081703983,0.82453998,3460.9,3460.8,2.8895]
[1721081704214,0.82453998,3460.6,3460.5,2.88975]
[1721081704382,0.82453998,3460.2,3460.1,5.78011]
[1721081704591,0.82453998,3460.2,3460.1,2.89003]
[1721081704784,5.62358439,3461.4,3460.3,2.88992]
[1721081704785,0.82453998,3460.6,3460.3,2.88992]
[1721081705134,0.82453998,3460.2,3460.1,2.89003]
[1721081705486,0.82453998,3460.2,3460.1,2.74568907]
[1721081705695,0.82453998,3460.0,3459.7,2.89041]
[1721081705907,0.82453998,3459.8,3459.0,2.89096]
[1721081706217,0.82453998,3459.8,3459.7,2.89042]
[1721081706535,0.82453998,3459.8,3458.7,2.89125]
[1721081706536,0.82453998,3459.4,3458.5,2.89136]
[1721081706675,0.82453998,3459.1,3458.9,2.89106]
[1721081706877,0.82453998,3459.1,3458.7,2.89125]
[1721081706878,0.82453998,3459.1,3459.0,2.891]
[1721081707104,0.82453998,3459.1,3457.7,10.29205]
[1721081707105,0.82453998,3458.5,3457.7,10.29205]
[1721081707308,0.82453998,3457.9,3457.8,2.89196]
[1721081707578,0.82453998,3457.9,3457.4,19.93]
[1721081707911,0.82453998,3457.7,3457.6,2.89217]
[1721081708104,0.82453998,3457.7,3456.5,10.29308]
[1721081708105,0.82453998,3458.3,3457.9,2.89188]
[1721081708279,0.82453998,3458.3,3457.2,0.05782695]
[1721081708480,0.82453998,3458.8,3458.7,2.89125]
[1721081708676,0.82453998,3459.1,3458.8,2.89116]
[1721081708871,0.82453998,3459.1,3457.2,0.62127358]
[1721081708872,0.82453998,3458.5,3458.4,2.89151]
[1721081709084,0.82453998,3458.5,3458.3,2.89159]
[1721081709403,5.36887,3459.6,3458.1,2.89174]
[1721081709404,0.82453998,3459.0,3458.1,2.89174]
[1721081709588,0.82453998,3458.6,3458.5,2.89141]
[1721081709921,0.82453998,3458.9,3458.7,2.89125]
[1721081710116,0.82453998,3458.3,3457.3,2.89241]
[1721081710419,0.82453998,3458.3,3457.9,2.89191]
[1721081710619,0.82453998,3458.3,3458.2,2.89167]
[1721081710774,0.82453998,3457.8,3457.7,2.89209]
[1721081710980,5.94084,3459.2,3457.4,3.0]
[1721081710981,0.82453998,3458.0,3457.9,2.89192]
[1721081711296,0.82453998,3458.2,3458.1,5.78352]
[1721081712078,0.82453998,3458.2,3458.1,2.89176]
[1721081712481,0.82453998,3458.2,3458.1,5.78352]
[1721081713382,0.30239659,3458.4,3458.3,8.67477]
[1721081713702,0.82453998,3459.2,3459.1,5.78184]
[1721081713905,0.82453998,3459.2,3459.1,2.89092]
[1721081714486,0.82453998,3459.0,3458.9,2.89108]
[1721081714978,0.30232241,3459.4,3458.6,2.89132]
[1721081715198,0.30232241,3459.4,3459.3,5.7815]
[1721081715402,0.82453998,3459.7,3459.6,5.781]
[1721081715831,0.82453998,3459.7,3459.6,2.8905]
[1721081716394,0.82453998,3459.4,3459.3,2.89075]
[1721081716609,0.30228306,3459.8,3459.3,2.89075]
[1721081716610,0.82453998,3459.6,3459.5,2.89059]
[1721081716993,0.82453998,3459.6,3459.5,5.78118]
[1721081717279,1.12682304,3459.8,3459.7,2.89042]
[1721081717703,0.82453998,3459.6,3459.5,2.89059]
[1721081718135,0.82453998,3459.4,3459.2,2.89077]
[1721081718316,0.82453998,3459.4,3458.7,0.289132]
[1721081718317,0.82453998,3459.4,3459.3,2.89075]
[1721081718499,0.82453998,3458.9,3458.4,3.0]
[1721081718677,0.82453998,3458.9,3458.1,3.470062]
[1721081718678,0.82453998,3458.9,3458.8,2.89117]
[1721081718882,0.30228306,3459.8,3458.5,0.3]
[1721081718883,0.82453998,3458.7,3458.6,2.8913]
[1721081719181,0.82453998,3459.0,3458.9,5.78218]
[1721081719394,0.82453998,3459.0,3458.9,2.89109]
[1721081719596,0.82453998,3458.8,3458.7,2.89121]
[1721081719922,0.30228306,3459.8,3458.5,2.89142]
[1721081719923,0.82453998,3458.6,3458.5,2.89142]
[1721081720139,0.82453998,3458.1,3458.0,2.89184]
[1721081720424,0.82453998,3457.6,3457.5,2.89219]
[1721081720594,0.82453998,3457.6,3457.5,5.78445]
[1721081720794,0.82453998,3457.6,3457.5,2.89219]
[1721081721020,0.82453998,3457.4,3457.3,2.89243]
[1721081721343,0.82453998,3457.4,3457.3,5.78486]
[1721081721495,0.82453998,3457.9,3457.3,3.470886]
[1721081721684,0.82453998,3458.2,3458.1,2.89176]
[1721081722067,0.82453998,3458.0,3457.9,2.89187]
[1721081722379,0.82453998,3458.3,3458.1,2.89173]
[1721081722607,0.82453998,3458.5,3458.4,5.78302]
[1721081723084,0.82453998,3458.9,3458.4,0.578302]
[1721081723435,0.82453998,3458.9,3458.8,5.78234]
[1721081723733,0.82453998,3459.2,3459.1,2.89092]
[1721081724033,0.30228306,3459.8,3459.3,2.89069]
[1721081724034,0.82453998,3459.4,3459.3,2.89069]
[1721081724239,0.82453998,3459.4,3459.3,5.78144]
[1721081724385,0.82453998,3459.4,3459.3,2.89069]
[1721081725083,0.82453998,3459.4,3459.3,5.78144]
[1721081725893,1.12682304,3459.8,3459.7,5.78084]
[1721081727983,1.12682304,3459.8,3457.9,0.2899]
[1721081727984,0.82453998,3459.1,3457.9,0.2899]
[1721081728188,0.82453998,3458.9,3458.8,5.78234]
[1721081728382,0.82453998,3458.9,3458.8,2.89117]
[1721081728710,0.82453998,3457.9,3457.5,2.89222]
[1721081728921,0.82453998,3457.4,3457.3,2.89243]
[1721081729084,0.82453998,3457.4,3457.3,5.78486]
[1721081730034,0.82453998,3457.4,3456.5,19.93]
[1721081730035,0.82453998,3457.4,3457.1,2.89256]
[1721081730238,0.82453998,3457.1,3457.0,2.89261]
[1721081730549,0.0504,3456.8,3456.7,2.89293]
[1721081730748,0.0504,3456.8,3456.7,5.78586]
[1721081731048,2.3032,3458.1,3457.4,2.89234]
[1721081731049,0.82453998,3457.5,3457.4,2.89234]
[1721081731251,0.82453998,3457.2,3456.7,0.578586]
[1721081731409,0.82453998,3457.2,3457.1,2.89259]
[1721081732048,0.82453998,3457.0,3456.7,2.89292]
[1721081732255,0.82453998,3456.7,3456.6,2.89301]
[1721081732552,0.82453998,3457.0,3455.7,2.3498]
[1721081732704,0.519502,3458.0,3456.7,2.89286]
[1721081732705,0.82453998,3456.8,3456.7,2.89286]
[1721081732906,0.519502,3458.0,3456.9,2.89276]
[1721081732907,0.82453998,3457.0,3456.9,2.89276]
[1721081733118,0.82453998,3456.8,3456.5,2.89308]
[1721081733409,0.82453998,3456.2,3455.1,3.785]
[1721081733711,0.82453998,3456.2,3455.0,3.1842]
[1721081733712,0.82453998,3456.4,3456.3,2.89326]
[1721081734208,0.82453998,3456.4,3456.3,5.78652]
[1721081734402,0.82453998,3456.4,3456.3,2.89326]
[1721081735078,0.82453998,3456.2,3456.1,2.89343]
[1721081735238,0.82453998,3455.8,3455.7,2.89376]
[1721081735835,0.82453998,3455.4,3455.3,2.89406]
[1721081736282,0.82453998,3455.5,3455.3,2.89404]
[1721081736584,0.82453998,3455.5,3455.4,2.89402]
[1721081737142,0.82453998,3455.5,3455.3,2.89407]
[1721081737469,0.82453998,3455.5,3455.4,5.78804]
[1721081737641,0.82453998,3455.7,3455.6,2.89385]
[1721081737969,0.82453998,3454.5,3454.1,7.4]
[1721081738180,0.82453998,3454.5,3454.4,2.89485]
[1721081738494,0.82453998,3454.3,3454.2,2.89502]
[1721081738659,0.82453998,3454.9,3454.7,2.89452]
[1721081738860,0.82453998,3454.6,3454.5,5.78954]
[1721081739057,0.82453998,3454.0,3453.8,2.89532]
[1721081739404,0.82453998,3454.2,3454.1,2.89511]
[1721081739980,0.30269149,3455.2,3453.6,0.02397125]
[1721081739981,0.82453998,3453.7,3453.6,0.02397125]
[1721081740183,0.82453998,3453.7,3453.6,5.81494125]
[1721081740481,0.82453998,3454.3,3454.2,5.79004]
[1721081740667,0.82453998,3454.0,3453.9,2.89527]
[1721081741147,0.82453998,3454.0,3453.8,2.89532]
[1721081741349,0.82453998,3454.0,3453.9,5.79054]
[1721081742454,0.82453998,3454.0,3453.9,2.89527]
[1721081742857,0.82453998,3454.0,3453.9,5.79054]
[1721081743247,0.82453998,3454.0,3453.9,2.89527]
[1721081743443,0.82453998,3454.0,3453.9,5.79054]
[1721081743970,0.82453998,3454.9,3453.9,3.58145112]
[1721081744181,0.82453998,3454.9,3454.8,5.78904]
[1721081744359,0.82453998,3454.7,3454.6,2.89468]
[1721081744560,0.82453998,3454.9,3454.8,2.89452]
[1721081744788,0.82453998,3454.9,3454.8,5.78904]
[1721081744965,0.82453998,3455.1,3455.0,5.7887]
[1721081745409,0.30269149,3455.2,3455.1,5.78854]
[1721081745568,2.278,3455.6,3454.8,0.289452]
[1721081745569,0.82453998,3455.6,3455.5,2.89393]
[1721081745767,0.82453998,3455.6,3455.4,2.89394]
[1721081746066,0.82453998,3455.6,3455.5,2.89393]
[1721081746305,0.82453998,3455.3,3455.2,2.89415]
[1721081746602,0.82453998,3455.5,3455.4,2.89402]
[1721081747007,0.82453998,3455.4,3454.8,0.289452]
[1721081747218,0.82453998,3455.4,3455.3,5.7882]
[1721081747509,1.12718133,3455.8,3455.7,2.89376]
[1721081748193,1.12718133,3455.8,3454.9,3.0]
[1721081748194,0.82453998,3455.5,3455.4,2.89399]
[1721081748401,0.82453998,3455.5,3455.4,5.78801]
[1721081748788,0.30264135,3455.8,3455.7,5.78752]
[1721081748789,1.12718133,3455.8,3455.7,5.78752]
[1721081749103,0.82453998,3455.8,3455.7,5.78752]
[1721081749266,0.82453998,3455.8,3455.7,2.89376]
[1721081749984,0.82453998,3455.8,3455.7,5.78752]
[1721081750184,0.82453998,3455.8,3455.7,6.366272]
[1721081750503,0.82453998,3455.8,3455.7,2.89376]
[1721081751382,0.82453998,3455.8,3455.7,5.78752]
[1721081751704,0.82453998,3455.8,3455.7,2.89376]
[1721081752072,0.82453998,3455.8,3455.7,5.78752]
[1721081752273,0.82453998,3455.8,3455.7,2.89376]
[1721081752574,0.82453998,3455.8,3455.7,5.78752]
[1721081753126,0.82453998,3455.8,3455.7,2.89376]
[1721081753319,0.82453998,3455.6,3455.5,2.89389]
[1721081753541,0.82453998,3455.2,3455.1,2.8942]
[1721081753868,0.82453998,3455.2,3453.7,7.4]
[1721081754068,0.82453998,3454.7,3454.0,0.79814511]
[1721081754310,0.82453998,3454.7,3454.6,2.89469]
[1721081754811,0.82453998,3454.7,3454.6,5.78938]
[1721081754995,0.82453998,3455.0,3454.9,2.89443]
[1721081755196,0.82453998,3455.2,3455.1,2.89427]
[1721081755382,0.82453998,3455.2,3455.1,5.78854]
[1721081755581,0.82453998,3455.2,3454.4,2.89478]
[1721081755582,3.23503998,3455.7,3455.6,2.89385]
[1721081755797,0.82453998,3455.7,3455.6,2.89385]
[1721081756413,0.82453998,3455.7,3455.5,2.89386]
[1721081756725,0.82453998,3455.7,3455.6,2.89385]
[1721081756874,0.82453998,3455.7,3454.5,3.0]
[1721081756875,0.82453998,3455.4,3455.3,2.89408]
[1721081757310,0.82453998,3455.6,3455.5,2.89393]
[1721081757524,0.82453998,3455.8,3455.7,2.89376]
[1721081757999,0.82453998,3455.8,3455.7,5.78752]
[1721081758203,0.82453998,3455.8,3455.7,2.89376]
[1721081758520,0.30261015,3456.0,3455.9,5.7872]
[1721081758674,0.82453998,3456.9,3456.5,2.89304]
[1721081758870,2.8914,3458.6,3456.6,5.78602]
[1721081758871,1.12707203,3456.7,3456.6,5.78602]
[1721081759092,0.82453998,3456.4,3455.9,0.57872]
[1721081759310,0.30253205,3456.7,3456.6,2.89301]
[1721081759482,0.82453998,3456.8,3456.6,5.78602]
[1721081759703,0.82453998,3456.2,3455.3,7.4]
[1721081759902,0.82453998,3455.8,3455.4,5.733]
[1721081760105,0.82453998,3456.0,3455.9,5.7872]
[1721081760310,0.82453998,3456.0,3455.9,2.8936]
[1721081760690,0.30255466,3456.7,3454.7,2.8946]
[1721081760691,0.82453998,3455.7,3454.7,2.89457]
[1721081760918,0.82453998,3455.7,3455.6,5.7877]
[1721081761095,0.82453998,3455.7,3455.6,2.89385]
[1721081761501,0.82453998,3455.1,3455.0,2.89435]
[1721081762029,0.82453998,3455.4,3455.3,2.8941]
[1721081762238,0.82453998,3455.4,3455.3,5.7882]
[1721081762458,0.82453998,3455.6,3455.5,5.78786]
[1721081762599,0.82453998,3455.6,3455.5,2.89393]
[1721081763550,0.82453998,3455.6,3455.5,5.78786]
[1721081764051,0.82453998,3456.1,3456.0,2.89351]
[1721081764197,0.82453998,3456.5,3456.2,2.89335]
[1721081764402,1.12709464,3456.7,3456.6,2.89301]
[1721081764620,0.82453998,3456.5,3456.3,2.8932]
[1721081765214,0.30255466,3456.7,3456.1,2.89339]
[1721081765215,0.82453998,3456.2,3456.1,2.89339]
[1721081765423,0.82453998,3456.2,3456.0,2.8935]
[1721081765823,0.82453998,3456.0,3455.9,2.89359]
[1721081766034,0.30255466,3456.7,3455.5,2.89393]
[1721081766035,0.82453998,3455.6,3455.5,2.89393]
[1721081766537,3.19548466,3456.7,3454.9,5.78886]
[1721081766538,0.82453998,3455.0,3454.9,5.78886]
[1721081766736,0.82453998,3455.2,3454.4,0.2899]
[1721081766954,0.82453998,3455.2,3455.1,2.89427]
[1721081767332,0.82453998,3455.2,3455.1,5.78854]
[1721081767734,0.82453998,3455.2,3455.1,2.89427]
[1721081768049,0.82453998,3454.7,3454.6,2.89464]
[1721081768780,2.4188,3455.9,3453.9,2.89527]
[1721081768781,0.82453998,3454.0,3453.9,2.89527]
[1721081769074,2.4188,3455.9,3453.9,2.89527]
[1721081769075,0.82453998,3454.5,3454.4,2.89485]
[1721081769277,0.82453998,3454.5,3454.4,5.7897]
[1721081769419,0.82453998,3455.3,3454.2,2.895]
[1721081769619,0.82453998,3455.3,3454.3,2.89493]
[1721081769856,0.82453998,3454.8,3454.7,2.8946]
[1721081770056,0.82453998,3454.6,3454.5,5.78954]
[1721081770260,0.82453998,3454.4,3454.3,2.89494]
[1721081770483,0.82453998,3454.1,3454.0,2.89519]
[1721081770759,2.89429,3455.1,3453.8,5.79072]
[1721081770760,0.82453998,3453.9,3453.8,5.79072]
[1721081770981,0.22037345,3453.9,3453.8,5.79072]
[1721081771135,0.22037345,3453.7,3453.6,2.91946125]
[1721081771634,0.22037345,3453.7,3453.6,0.02397125]
[1721081771834,0.22037345,3453.7,3453.6,2.91949125]
[1721081772461,0.22037345,3453.7,3453.6,0.02397125]
[1721081772865,0.22037345,3453.7,3453.6,2.91949125]
[1721081773796,0.22037345,3453.7,3453.6,0.02397125]
[1721081775342,5.53321345,3453.7,3453.6,0.02397125]
[1721081775489,8.42865345,3453.7,3453.6,0.02397125]
[1721081775693,0.22037345,3452.1,3452.0,2.89687]
[1721081775940,0.22037345,3452.1,3452.0,5.79374]
[1721081776089,0.22037345,3451.9,3451.1,0.2899]
[1721081776295,2.89621,3452.8,3451.6,2.8972]
[1721081776296,0.22037345,3451.7,3451.6,2.8972]
[1721081776522,0.22037345,3451.7,3451.6,6.08412]
[1721081776705,4.5,3454.0,3451.6,0.28972]
[1721081776706,0.22037345,3452.0,3451.6,0.28972]
[1721081776917,0.22037345,3452.0,3451.9,5.7939]
[1721081777448,0.22037345,3452.0,3451.1,3.18752]
[1721081777449,0.22037345,3452.5,3451.6,2.89719]
[1721081777606,0.22037345,3452.5,3452.4,5.79306]
[1721081778286,0.22037345,3452.1,3452.0,2.89687]
[1721081778487,0.22037345,3452.0,3451.9,2.89695]
[1721081778688,0.22037345,3452.5,3452.4,2.89653]
[1721081778944,0.22037345,3452.5,3452.4,5.79306]
[1721081779103,0.22037345,3452.7,3452.6,2.89636]
[1721081779307,0.22037345,3452.5,3452.4,2.89652]
[1721081779490,0.22037345,3452.3,3452.2,2.8967]
[1721081779690,2.4174,3453.7,3452.2,3.2153295]
[1721081779691,0.22037345,3452.7,3452.2,3.2153295]
[1721081779910,2.4174,3453.7,3452.8,2.8962]
[1721081779911,0.22037345,3452.9,3452.8,2.8962]
[1721081780327,0.22037345,3452.7,3452.6,2.89632]
[1721081780723,0.52309924,3452.9,3452.8,2.8962]
[1721081781030,2.4174,3453.7,3453.0,2.89603]
[1721081781031,0.22037345,3453.1,3453.0,2.89603]
[1721081781345,0.52286396,3453.1,3453.0,2.89603]
[1721081781632,0.22037345,3452.9,3452.8,2.8962]
[1721081781796,0.22037345,3452.9,3452.2,0.3186395]
[1721081781797,0.22037345,3452.5,3452.2,0.3186395]
[1721081781993,0.22037345,3452.3,3452.2,2.89666]
[1721081782241,0.22037345,3452.3,3452.1,2.89678]
[1721081782628,0.30249051,3453.1,3451.9,2.89694]
[1721081782629,0.22037345,3452.0,3451.9,2.89694]
[1721081782954,0.30249051,3453.1,3451.7,2.89711]
[1721081782955,0.22037345,3451.8,3451.7,2.89711]
[1721081783153,2.4236,3452.7,3451.7,2.89711]
[1721081783154,0.22037345,3452.0,3451.9,2.89695]
[1721081783638,0.17037345,3452.0,3451.9,2.89695]
[1721081784216,2.4236,3452.7,3450.6,2.6588]
[1721081784217,0.17037345,3451.8,3451.6,2.89713]
[1721081784412,0.17037345,3451.5,3451.3,2.89739]
[1721081784657,0.17037345,3451.5,3450.6,3.18788]
[1721081784658,0.17037345,3451.5,3451.4,2.89737]
[1721081785429,0.17037345,3451.6,3451.5,2.89723]
[1721081786028,5.31991,3452.7,3451.3,2.89743]
[1721081786029,0.17037345,3451.4,3451.3,2.89743]
[1721081786228,0.17037345,3450.8,3450.7,5.79592]
[1721081786458,0.17037345,3451.2,3450.7,0.869409]
[1721081786728,0.17037345,3451.1,3450.5,2.89813]
[1721081786956,0.17037345,3450.7,3450.6,2.89797]
[1721081787163,0.17037345,3450.7,3450.6,5.79601]
[1721081787866,2.4236,3452.7,3450.6,0.05795452]
[1721081787867,0.17037345,3451.2,3450.6,0.05795452]
[1721081788065,5.31991,3452.7,3451.5,5.79458]
[1721081788066,0.17037345,3451.6,3451.5,5.79458]
[1721081788765,0.17037345,3451.8,3451.7,5.79424]
[1721081789474,0.17037345,3452.4,3451.3,3.05794027]
[1721081789631,0.30249051,3453.1,3452.5,2.89645]
[1721081789632,0.17037345,3452.6,3452.5,2.89645]
[1721081789869,0.17037345,3452.6,3452.5,5.7929]
[1721081790055,0.30249051,3453.1,3452.5,0.57929]
[1721081790056,0.17037345,3452.7,3452.5,0.57929]
[1721081790257,0.17037345,3453.0,3452.9,2.89611]
[1721081790456,0.17037345,3453.0,3452.5,0.57929]
[1721081790457,0.17037345,3453.5,3453.0,2.89603]
[1721081790716,0.17037345,3453.5,3453.4,5.79138]
[1721081790854,0.17037345,3453.5,3453.1,2.8959]
[1721081791055,0.17037345,3452.9,3452.8,2.89618]
[1721081791257,0.17037345,3452.9,3452.6,2.89635]
[1721081791456,0.17037345,3452.9,3452.8,2.8962]
[1721081791695,0.17037345,3453.2,3452.9,2.89607]
[1721081791997,0.17037345,3453.0,3452.9,2.89607]
[1721081792168,0.17037345,3453.2,3453.1,2.89594]
[1721081792378,0.30282447,3453.8,3453.5,2.89561]
[1721081792379,0.17037345,3453.6,3453.5,2.89561]
[1721081792592,0.17037345,3454.1,3454.0,2.89519]
[1721081792910,0.17037345,3454.3,3454.2,2.89502]
[1721081793196,0.30277828,3454.5,3454.2,2.89502]
[1721081793197,0.17037345,3454.5,3454.4,2.89485]
[1721081793365,0.17037345,3454.5,3454.2,2.89502]
[1721081793581,0.17037345,3454.4,3454.3,5.78988]
[1721081795098,0.3027003,3454.5,3454.4,5.7897]
[1721081796095,0.3027003,3454.5,3454.4,2.89485]
[1721081796798,0.17037345,3454.0,3453.5,3.0]
[1721081796961,0.17037345,3454.2,3453.5,3.589563]
[1721081797167,0.17037345,3454.1,3453.9,2.89524]
[1721081797390,0.17037345,3454.3,3454.1,2.89508]
[1721081797591,0.17037345,3454.0,3453.7,2.89542]
[1721081797795,0.17037345,3453.5,3453.4,2.89569]
[1721081798131,0.17037345,3453.5,3452.1,5.4286]
[1721081798293,0.17037345,3453.5,3453.4,5.79138]
[1721081798834,0.17037345,3453.2,3451.9,3.05]
[1721081799007,0.17037345,3453.0,3452.9,2.89611]
[1721081799421,0.17037345,3453.0,3452.9,5.79222]
[1721081799794,0.17037345,3453.3,3453.2,2.89586]
[1721081800004,0.17037345,3453.3,3453.2,2.8958]
[1721081800349,5.25463,3454.2,3453.0,2.89603]
[1721081800350,0.17037345,3453.1,3453.0,2.89603]
[1721081800501,2.89511,3454.1,3453.2,2.89586]
[1721081800502,0.17037345,3453.5,3453.2,2.89586]
[1721081800701,0.17037345,3453.3,3453.2,5.79172]
[1721081800901,0.17037345,3452.7,3452.6,3.0]
[1721081801204,0.17037345,3452.5,3452.4,2.89653]
[1721081801400,0.17037345,3452.5,3452.4,5.79306]
[1721081801648,0.17037345,3452.1,3451.9,2.89692]
[1721081802005,0.17037345,3452.1,3452.0,2.89687]
[1721081802206,0.17037345,3451.8,3451.7,2.89711]
[1721081803061,0.17037345,3451.8,3451.7,5.79423]
[1721081804122,0.30295194,3452.0,3451.7,2.89711]
[1721081804435,0.47332539,3452.0,3451.9,5.7939]
[1721081804630,0.47332539,3452.0,3451.9,2.89695]
[1721081805263,0.47332539,3452.0,3451.6,2.89712]
[1721081805264,0.17037345,3451.8,3451.7,2.89708]
[1721081805976,0.17037345,3451.6,3451.5,2.89728]
[1721081806156,0.17037345,3451.6,3451.5,8.79457]
[1721081806365,0.47332539,3452.0,3451.5,5.89728]
[1721081806562,0.47332539,3452.0,3451.9,2.89695]
[1721081807268,0.47332539,3452.0,3451.0,2.89765]
[1721081807269,0.17037345,3451.5,3450.0,1.5]
[1721081807477,0.17037345,3451.3,3451.2,2.89754]
[1721081807675,0.17037345,3451.5,3451.3,2.89745]
[1721081807836,0.17037345,3451.5,3451.4,2.89737]
[1721081808038,0.17037345,3451.7,3451.6,5.7944]
[1721081808271,0.47332539,3452.0,3451.9,2.89695]
[1721081808577,2.3506,3453.1,3451.2,3.0]
[1721081808578,0.17037345,3452.5,3452.4,2.89653]
[1721081808766,0.17037345,3452.2,3452.0,2.89681]
[1721081808964,0.30292553,3452.7,3452.4,2.89651]
[1721081809160,0.17037345,3452.1,3451.0,2.3098]
[1721081809343,0.17037345,3452.1,3452.0,5.79374]
[1721081809541,0.17037345,3452.3,3452.0,2.89687]
[1721081809785,0.17037345,3452.5,3452.4,2.89653]
[1721081810368,0.17037345,3452.6,3452.5,2.89639]
[1721081810568,0.30292553,3452.7,3451.8,2.95489895]
[1721081810569,0.47329898,3452.7,3452.6,5.79272]
[1721081810768,0.30292553,3452.7,3452.6,6.371992]
[1721081811367,2.4596,3453.8,3452.3,2.89654]
[1721081811368,0.17037345,3452.6,3452.3,2.89654]